fUSD/lending_fUSD_20250530
["ID","MTS","AMOUNT","RATE_DAILY","PERIOD"]
[363109227,1748583048389,-420.0,0.00021917,2]
[363109228,1748583048399,-420.0,0.00021917,2]
[363109229,1748583048409,-475.95,0.00021917,2]
[363109230,1748583048419,-420.0,0.00021917,2]
[363109231,1748583048428,-420.0,0.00021917,2]
[363109232,1748583048438,-548.96,0.00021917,2]
[363109233,1748583048448,-570.79,0.00021917,2]
[363109234,1748583048458,-488.13,0.00021917,2]
[363109235,1748583048467,-643.04,0.00021917,2]
[363109236,1748583048477,-230.03009426,0.00021917,2]
[363109237,1748583048487,-541.04,0.00021917,2]
[363109238,1748583048496,-981.92,0.00021917,2]
[363109239,1748583048508,-632.18,0.00021917,2]
[363109240,1748583048517,-1097.0,0.00021917,2]
[363109241,1748583048527,-420.0,0.00021917,2]
[363109242,1748583048536,-420.0,0.00021917,2]
[363109243,1748583048545,-420.0,0.00021917,2]
[363109244,1748583048554,-420.0,0.00021917,2]
[363109245,1748583048563,-1094.44,0.00021917,2]
[363109246,1748583048573,-775.07,0.00021917,2]
[363109247,1748583048582,-420.0,0.00021917,2]
[363109248,1748583048591,-420.0,0.00021917,2]
[363109249,1748583048600,-420.0,0.00021917,2]
[363109250,1748583048609,-420.0,0.00021917,2]
[363109251,1748583048619,-389.23710382,0.00021917,2]
[363109252,1748583048628,-1293.12,0.00021917,2]
[363109253,1748583048638,-1697.11,0.00021917,2]
[363109254,1748583048647,-517.27,0.00021917,2]
[363109255,1748583048656,-420.0,0.00021917,2]
[363109256,1748583048665,-420.0,0.00021917,2]
[363109257,1748583048674,-541.57,0.00021917,2]
[363109258,1748583048684,-1134.85,0.00021917,2]
[363109259,1748583048693,-1006.05,0.00021917,2]
[363109260,1748583048702,-420.0,0.00021917,2]
[363109261,1748583048711,-420.0,0.00021917,2]
[363109262,1748583048721,-420.0,0.00021917,2]
[363109263,1748583048730,-905.0,0.00021917,2]
[363109264,1748583048739,-420.0,0.00021917,2]
[363109265,1748583048749,-420.0,0.00021917,2]
[363109266,1748583048758,-1260.47,0.00021917,2]
[363109267,1748583048767,-420.0,0.00021917,2]
[363109268,1748583048777,-420.0,0.00021917,2]
[363109269,1748583048787,-648.11,0.00021917,2]
[363109270,1748583048796,-704.75,0.00021917,2]
[363109271,1748583048806,-420.0,0.00021917,2]
[363109272,1748583048815,-420.0,0.00021917,2]
[363109273,1748583048824,-650.59,0.00021917,2]
[363109274,1748583048834,-485.24,0.00021917,2]
[363109275,1748583048843,-598.18,0.00021917,2]
[363109276,1748583048852,-742.19,0.00021917,2]
[363109277,1748583048861,-463.18,0.00021917,2]
[363109278,1748583048871,-1187.71,0.00021917,2]
[363109279,1748583048880,-420.0,0.00021917,2]
[363109280,1748583048889,-420.0,0.00021917,2]
[363109281,1748583048898,-420.0,0.00021917,2]
[363109282,1748583048907,-420.0,0.00021917,2]
[363109283,1748583048917,-976.36,0.00021917,2]
[363109284,1748583048926,-1065.9,0.00021917,2]
[363109285,1748583048937,-134725.9,0.00021917,2]
[363109286,1748583048947,-945.43,0.00021917,2]
[363109287,1748583048958,-196.36653621,0.00021917,2]
[363109288,1748583048967,-420.0,0.00021917,2]
[363109289,1748583048976,-420.0,0.00021917,2]
[363109290,1748583048987,-1257.46,0.00021917,2]
[363109291,1748583048996,-1326.57,0.00021917,2]
[363109292,1748583049006,-3374.31,0.00021917,2]
[363109293,1748583049015,-420.0,0.00021917,2]
[363109294,1748583049025,-420.0,0.00021917,2]
[363109295,1748583049034,-453.55,0.00021917,2]
[363109296,1748583049044,-429.33,0.00021917,2]
[363109297,1748583049054,-420.0,0.00021917,2]
[363109298,1748583049063,-728.54,0.00021917,2]
[363109299,1748583049072,-447.53,0.00021917,2]
[363109300,1748583049082,-420.0,0.00021917,2]
[363109301,1748583049091,-420.0,0.00021917,2]
[363109302,1748583049101,-1031.91,0.00021917,2]
[363109303,1748583049110,-887.16,0.00021917,2]
[363109304,1748583049119,-1082.97,0.00021917,2]
[363109305,1748583049129,-896.39,0.00021917,2]
[363109306,1748583049138,-2539.51,0.00021917,2]
[363109307,1748583049147,-420.0,0.00021917,2]
[363109308,1748583049157,-702.25,0.00021917,2]
[363109309,1748583049167,-519.32,0.00021917,2]
[363109310,1748583049176,-1418.47,0.00021917,2]
[363109311,1748583049185,-927.49,0.00021917,2]
[363109312,1748583049195,-420.0,0.00021917,2]
[363109313,1748583049204,-677.06,0.00021917,2]
[363109314,1748583049214,-1040.56,0.00021917,2]
[363109315,1748583049224,-420.0,0.00021917,2]
[363109316,1748583049233,-858.03,0.00021917,2]
[363109317,1748583049243,-420.0,0.00021917,2]
[363109318,1748583049253,-3219.59,0.00021917,2]
[363109319,1748583049262,-752.58,0.00021917,2]
[363109320,1748583049272,-840.51,0.00021917,2]
[363109321,1748583049282,-420.0,0.00021917,2]
[363109322,1748583049291,-743.8,0.00021917,2]
[363109323,1748583049304,-1296.88,0.00021917,2]
[363109324,1748583049313,-424.62,0.00021917,2]
[363109325,1748583049323,-440.93890944,0.00021917,2]
[363109326,1748583049332,-420.0,0.00021917,2]
[363109327,1748583049343,-8706.32,0.00021917,2]
[363109328,1748583049352,-420.0,0.00021917,2]
[363109329,1748583049362,-420.0,0.00021917,2]
[363109330,1748583049373,-542.05,0.00021917,2]
[363109331,1748583049382,-449.57,0.00021917,2]
[363109332,1748583049392,-443.36,0.00021917,2]
[363109333,1748583049402,-969.43,0.00021917,2]
[363109334,1748583049411,-498.76,0.00021917,2]
[363109335,1748583049421,-917.26,0.00021917,2]
[363109336,1748583049431,-1607.99,0.00021917,2]
[363109337,1748583049440,-35480.53,0.00021917,2]
[363109338,1748583049449,-420.0,0.00021917,2]
[363109339,1748583049458,-694.63,0.00021917,2]
[363109340,1748583049467,-420.0,0.00021917,2]
[363109341,1748583049477,-420.0,0.00021917,2]
[363109342,1748583049486,-1169.31,0.00021917,2]
[363109343,1748583049495,-511.72,0.00021917,2]
[363109344,1748583049505,-420.0,0.00021917,2]
[363109345,1748583049514,-3899.57,0.00021917,2]
[363109346,1748583049523,-766.34,0.00021917,2]
[363109347,1748583049533,-1565.21,0.00021917,2]
[363109348,1748583049542,-1389.93,0.00021917,2]
[363109349,1748583049552,-420.0,0.00021917,2]
[363109350,1748583049562,-420.0,0.00021917,2]
[363109351,1748583049572,-226.20076235,0.00021917,2]
[363109352,1748583049581,-535.58,0.00021917,2]
[363109353,1748583049591,-420.0,0.00021917,2]
[363109354,1748583049601,-1174.1,0.00021917,2]
[363109355,1748583049611,-420.0,0.00021917,2]
[363109356,1748583049620,-1967.1,0.00021917,2]
[363109357,1748583049630,-2168.21,0.00021917,2]
[363109358,1748583049639,-499.57,0.00021917,2]
[363109359,1748583049649,-2664.47,0.00021917,2]
[363109360,1748583049658,-687.46,0.00021917,2]
[363109361,1748583049668,-1146.33,0.00021917,2]
[363109362,1748583049677,-420.0,0.00021917,2]
[363109363,1748583049686,-420.0,0.00021917,2]
[363109364,1748583049696,-420.0,0.00021917,2]
[363109365,1748583049705,-535.45,0.00021917,2]
[363109366,1748583049715,-1781.42,0.00021917,2]
[363109367,1748583049724,-2141.78,0.00021917,2]
[363109368,1748583049733,-586.88,0.00021917,2]
[363109369,1748583049742,-420.0,0.00021917,2]
[363109370,1748583049752,-10765.45,0.00021917,2]
[363109371,1748583049761,-1517.98,0.00021917,2]
[363109372,1748583049771,-420.0,0.00021917,2]
[363109373,1748583049780,-2409.06,0.00021917,2]
[363109374,1748583049790,-3859.33,0.00021917,2]
[363109375,1748583049799,-1426.59,0.00021917,2]
[363109376,1748583049809,-420.0,0.00021917,2]
[363109377,1748583049818,-871.05,0.00021917,2]
[363109378,1748583049827,-779.24,0.00021917,2]
[363109379,1748583049836,-420.0,0.00021917,2]
[363109380,1748583049846,-1271.37,0.00021917,2]
[363109381,1748583049856,-2243.65,0.00021917,2]
[363109382,1748583049865,-950.39,0.00021917,2]
[363109383,1748583049875,-896.43,0.00021917,2]
[363109384,1748583049884,-11667.22,0.00021917,2]
[363109385,1748583049894,-1776.97,0.00021917,2]
[363109386,1748583049903,-7702.22,0.00021917,2]
[363109387,1748583049912,-1508.25,0.00021917,2]
[363109388,1748583049922,-1272.35,0.00021917,2]
[363109389,1748583049932,-903.87,0.00021917,2]
[363109390,1748583049942,-569.88,0.00021917,2]
[363109391,1748583049951,-541.8,0.00021917,2]
[363109392,1748583049960,-6762.82,0.00021917,2]
[363109393,1748583049970,-1196.5,0.00021917,2]
[363109394,1748583049980,-1776.94,0.00021917,2]
[363109395,1748583049990,-492.07,0.00021917,2]
[363109396,1748583049999,-1075.18,0.00021917,2]
[363109397,1748583050009,-8113.51,0.00021917,2]
[363109398,1748583050018,-420.0,0.00021917,2]
[363109399,1748583050028,-5346.28,0.00021917,2]
[363109400,1748583050039,-4416.55,0.00021917,2]
[363109401,1748583050048,-3080.07,0.00021917,2]
[363109402,1748583050057,-6849.09,0.00021917,2]
[363109403,1748583050066,-2558.48,0.00021917,2]
[363109404,1748583050076,-420.0,0.00021917,2]
[363109405,1748583050085,-420.0,0.00021917,2]
[363109406,1748583050094,-420.0,0.00021917,2]
[363109407,1748583050103,-420.0,0.00021917,2]
[363109408,1748583050115,-12044.92,0.00021917,2]
[363109409,1748583050124,-572.75,0.00021917,2]
[363109410,1748583050133,-911.37,0.00021917,2]
[363109411,1748583050142,-804.58,0.00021917,2]
[363109412,1748583050152,-821.88,0.00021917,2]
[363109413,1748583050161,-1598.04,0.00021917,2]
[363109414,1748583050170,-1863.52,0.00021917,2]
[363109415,1748583050179,-2681.37,0.00021917,2]
[363109416,1748583050189,-420.0,0.00021917,2]
[363109417,1748583050198,-885.41,0.00021917,2]
[363109418,1748583050207,-759.09,0.00021917,2]
[363109419,1748583050216,-420.0,0.00021917,2]
[363109420,1748583050225,-1611.92,0.00021917,2]
[363109421,1748583050234,-420.0,0.00021917,2]
[363109422,1748583050243,-1358.4,0.00021917,2]
[363109423,1748583050253,-725.32,0.00021917,2]
[363109424,1748583050262,-686.77,0.00021917,2]
[363109425,1748583050272,-669.64,0.00021917,2]
[363109426,1748583050281,-1791.14,0.00021917,2]
[363109427,1748583050291,-22619.8,0.00021917,2]
[363109428,1748583050306,-1296.09,0.00021917,2]
[363109429,1748583050316,-1381.96,0.00021917,2]
[363109430,1748583050325,-638.11,0.00021917,2]
[363109431,1748583050336,-679.82,0.00021917,2]
[363109432,1748583050347,-420.0,0.00021917,2]
[363109433,1748583050356,-813.53,0.00021917,2]
[363109434,1748583050366,-1426.97,0.00021917,2]
[363109435,1748583050376,-1333.66,0.00021917,2]
[363109436,1748583050387,-1080.73,0.00021917,2]
[363109437,1748583050396,-420.0,0.00021917,2]
[363109438,1748583050623,-1408.23,0.00021917,2]
[363109439,1748583050634,-542.78,0.00021917,2]
[363109440,1748583050644,-1348.64,0.00021917,2]
[363109441,1748583050654,-4725.64,0.00021917,2]
[363109442,1748583050664,-681.77,0.00021917,2]
[363109443,1748583050673,-420.0,0.00021917,2]
[363109444,1748583050682,-3285.44,0.00021917,2]
[363109445,1748583050692,-459.65,0.00021917,2]
[363109446,1748583050702,-871.62,0.00021917,2]
[363109447,1748583050711,-1397.64,0.00021917,2]
[363109448,1748583050720,-641.83,0.00021917,2]
[363109449,1748583050729,-1200.44,0.00021917,2]
[363109450,1748583050739,-1462.0,0.00021917,2]
[363109451,1748583050749,-2478.03,0.00021917,2]
[363109452,1748583050758,-692.84,0.00021917,2]
[363109453,1748583050767,-1001.95,0.00021917,2]
[363109454,1748583050778,-684.93,0.00021917,2]
[363109455,1748583050789,-21945.28,0.00021917,2]
[363109456,1748583050800,-2253.85,0.00021917,2]
[363109457,1748583050813,-420.0,0.00021917,2]
[363109458,1748583050823,-767.38,0.00021917,2]
[363109459,1748583050833,-420.0,0.00021917,2]
[363109460,1748583050843,-1038.49,0.00021917,2]
[363109461,1748583050852,-890.18,0.00021917,2]
[363109462,1748583050862,-3535.41,0.00021917,2]
[363109463,1748583050872,-4466.17,0.00021917,2]
[363109464,1748583050883,-1092.84,0.00021917,2]
[363109465,1748583050893,-1021.96,0.00021917,2]
[363109466,1748583050902,-1327.91,0.00021917,2]
[363109467,1748583050912,-420.0,0.00021917,2]
[363109468,1748583050921,-524.41,0.00021917,2]
[363109469,1748583050931,-420.0,0.00021917,2]
[363109470,1748583050941,-646.85,0.00021917,2]
[363109471,1748583050951,-5200.21,0.00021917,2]
[363109472,1748583050961,-3516.63,0.00021917,2]
[363109473,1748583050970,-434.74,0.00021917,2]
[363109474,1748583050979,-738.01,0.00021917,2]
[363109475,1748583050989,-3329.98,0.00021917,2]
[363109476,1748583050999,-968.53,0.00021917,2]
[363109477,1748583051008,-1840.33,0.00021917,2]
[363109478,1748583051018,-11903.45,0.00021917,2]
[363109479,1748583051027,-976.28,0.00021917,2]
[363109480,1748583051036,-420.0,0.00021917,2]
[363109481,1748583051046,-616.59,0.00021917,2]
[363109482,1748583051055,-456.28,0.00021917,2]
[363109483,1748583051065,-1752.34,0.00021917,2]
[363109484,1748583051074,-1181.21,0.00021917,2]
[363109485,1748583051083,-578.92,0.00021917,2]
[363109486,1748583051093,-2292.3,0.00021917,2]
[363109487,1748583051102,-1558.44,0.00021917,2]
[363109488,1748583051112,-1830.86,0.00021917,2]
[363109489,1748583051121,-2933.58,0.00021917,2]
[363109490,1748583051131,-1048.43,0.00021917,2]
[363109491,1748583051141,-557.6,0.00021917,2]
[363109492,1748583051151,-907.26,0.00021917,2]
[363109493,1748583051160,-854.87,0.00021917,2]
[363109494,1748583051169,-12058.6,0.00021917,2]
[363109495,1748583051179,-987.34,0.00021917,2]
[363109496,1748583051188,-420.0,0.00021917,2]
[363109497,1748583051198,-1013.83,0.00021917,2]
[363109498,1748583051207,-156.552978,0.00021917,2]
[363109499,1748583051217,-2735.23,0.00021917,2]
[363109500,1748583051227,-553.1,0.00021917,2]
[363109501,1748583051236,-611.79,0.00021917,2]
[363109502,1748583051245,-6014.98,0.00021917,2]
[363109503,1748583051255,-434.94381896,0.00021917,2]
[363109504,1748583051265,-420.0,0.00021917,2]
[363109505,1748583051275,-1425.63,0.00021917,2]
[363109506,1748583051284,-420.0,0.00021917,2]
[363109507,1748583051295,-526.57,0.00021917,2]
[363109508,1748583051306,-665.25,0.00021917,2]
[363109509,1748583051315,-1288.72,0.00021917,2]
[363109510,1748583051324,-1808.24,0.00021917,2]
[363109511,1748583051334,-3371.04,0.00021917,2]
[363109512,1748583051344,-3416.49,0.00021917,2]
[363109513,1748583051354,-7656.29,0.00021917,2]
[363109514,1748583051364,-6314.81,0.00021917,2]
[363109515,1748583051375,-500.94,0.00021917,2]
[363109516,1748583051387,-420.0,0.00021917,2]
[363109517,1748583051397,-901.87,0.00021917,2]
[363109518,1748583051407,-420.0,0.00021917,2]
[363109519,1748583051416,-211.13031521,0.00021917,2]
[363109520,1748583051426,-4265.37,0.00021917,2]
[363109521,1748583051435,-606.33,0.00021917,2]
[363109522,1748583051445,-922.06,0.00021917,2]
[363109523,1748583051454,-208.96799561,0.00021917,2]
[363109524,1748583051463,-420.0,0.00021917,2]
[363109525,1748583051473,-4387.75,0.00021917,2]
[363109526,1748583051483,-420.0,0.00021917,2]
[363109527,1748583051492,-420.0,0.00021917,2]
[363109528,1748583051503,-877.05,0.00021917,2]
[363109529,1748583051512,-2773.34,0.00021917,2]
[363109530,1748583051522,-482.32,0.00021917,2]
[363109531,1748583051531,-420.0,0.00021917,2]
[363109532,1748583051541,-903.28,0.00021917,2]
[363109533,1748583051551,-681.56,0.00021917,2]
[363109534,1748583051560,-548.82,0.00021917,2]
[363109535,1748583051569,-1000.0,0.00021917,2]
[363109536,1748583051579,-5215.58,0.00021917,2]
[363109537,1748583051588,-420.0,0.00021917,2]
[363109538,1748583051597,-1220.46,0.00021917,2]
[363109539,1748583051607,-1026.91,0.00021917,2]
[363109540,1748583051616,-2169.18,0.00021917,2]
[363109541,1748583051625,-420.0,0.00021917,2]
[363109542,1748583051635,-420.0,0.00021917,2]
[363109543,1748583051646,-420.0,0.00021917,2]
[363109544,1748583051655,-2570.57,0.00021917,2]
[363109545,1748583051664,-589.58,0.00021917,2]
[363109546,1748583051674,-608.67,0.00021917,2]
[363109547,1748583051684,-2383.53,0.00021917,2]
[363109548,1748583051693,-847.0,0.00021917,2]
[363109549,1748583051703,-578.9,0.00021917,2]
[363109550,1748583051712,-812.85,0.00021917,2]
[363109551,1748583051721,-1675.55,0.00021917,2]
[363109552,1748583051731,-673.8,0.00021917,2]
[363109553,1748583051740,-420.0,0.00021917,2]
[363109554,1748583051749,-3155.11,0.00021917,2]
[363109555,1748583051759,-420.0,0.00021917,2]
[363109556,1748583051769,-743.2,0.00021917,2]
[363109557,1748583051778,-1384.2,0.00021917,2]
[363109558,1748583051788,-1704.73,0.00021917,2]
[363109559,1748583051798,-3243.36,0.00021917,2]
[363109560,1748583051807,-5428.99,0.00021917,2]
[363109561,1748583051817,-420.0,0.00021917,2]
[363109562,1748583051826,-487.13,0.00021917,2]
[363109563,1748583051836,-426.34,0.00021917,2]
[363109564,1748583051846,-420.0,0.00021917,2]
[363109565,1748583051855,-420.0,0.00021917,2]
[363109566,1748583051865,-421.27,0.00021917,2]
[363109567,1748583051875,-420.0,0.00021917,2]
[363109568,1748583051885,-487.92,0.00021917,2]
[363109569,1748583051894,-1144.91,0.00021917,2]
[363109570,1748583051904,-3302.22,0.00021917,2]
[363109571,1748583051914,-1151.71,0.00021917,2]
[363109572,1748583051924,-738.15,0.00021917,2]
[363109573,1748583051934,-770.73,0.00021917,2]
[363109574,1748583051944,-420.0,0.00021917,2]
[363109575,1748583051954,-430.30137604,0.00021918,2]
[363109576,1748583051963,-500.0,0.00021973,2]
[363109577,1748583051972,-150.45461272,0.00021994,2]
[363109578,1748583051982,-740.52048,0.00021997,3]
[363109579,1748583051991,-156.97894079,0.00022,2]
[363109580,1748583052001,-460.4,0.00022055,2]
[363109581,1748583052011,-185.75,0.00022055,2]
[363109582,1748583052020,-1000.0,0.00022064,7]
[363109583,1748583052029,-1000.0,0.00022064,7]
[363109584,1748583052039,-1000.0,0.00022064,7]
[363109585,1748583052049,-1000.0,0.00022064,7]
[363109586,1748583052059,-1000.0,0.00022064,7]
[363109587,1748583052069,-1000.0,0.00022064,7]
[363109588,1748583052078,-1000.0,0.00022064,7]
[363109589,1748583052088,-1000.0,0.00022064,7]
[363109590,1748583052097,-1000.0,0.00022064,7]
[363109591,1748583052107,-1000.0,0.00022064,7]
[363109592,1748583052116,-1000.0,0.00022064,2]
[363109593,1748583052126,-1000.0,0.00022064,2]
[363109594,1748583052138,-1000.0,0.00022064,2]
[363109595,1748583052147,-1000.0,0.00022064,2]
[363109596,1748583052157,-1000.0,0.00022064,2]
[363109597,1748583052166,-1000.0,0.00022064,2]
[363109598,1748583052175,-1000.0,0.00022064,2]
[363109599,1748583052185,-1000.0,0.00022064,2]
[363109600,1748583052195,-1000.0,0.00022064,2]
[363109601,1748583052204,-1000.0,0.00022064,2]
[363109602,1748583052214,-162.3642346,0.00022091,2]
[363109603,1748583052223,-150.45461272,0.00022172,2]
[363109604,1748583052233,-500.0,0.00022173,2]
[363109605,1748583052243,-500.0,0.00022173,2]
[363109606,1748583052254,-500.0,0.00022173,2]
[363109607,1748583052263,-500.0,0.00022173,2]
[363109608,1748583052272,-162.93272318,0.00022181,2]
[363109609,1748583052282,-151.0,0.00022191,7]
[363109610,1748583052291,-151.0,0.00022191,7]
[363109611,1748583052305,-154.699019,0.00022191,7]
[363109612,1748583052315,-1148.055175,0.00022191,2]
[363109613,1748583052324,-1327.180432,0.00022191,2]
[363109614,1748583052334,-539.09694297,0.00022191,2]
[363109615,1748583052344,-943.54,0.00022191,2]
[363109616,1748583052354,-420.0,0.00022191,2]
[363109617,1748583052364,-420.0,0.00022191,2]
[363109618,1748583052374,-153.188757,0.00022191,7]
[363109619,1748583052384,-448.65,0.00022191,2]
[363109620,1748583052396,-151.0,0.00022191,7]
[363109621,1748583052406,-420.0,0.00022191,2]
[363109622,1748583052415,-420.0,0.00022191,2]
[363109623,1748583052425,-442.44,0.00022191,2]
[363109624,1748583052434,-1171.11,0.00022191,2]
[363109625,1748583052444,-420.0,0.00022191,2]
[363109626,1748583052454,-420.0,0.00022191,2]
[363109627,1748583052464,-420.0,0.00022191,2]
[363109628,1748583052475,-445.42,0.00022191,2]
[363109629,1748583052485,-420.0,0.00022191,2]
[363109630,1748583052495,-420.0,0.00022191,2]
[363109631,1748583052504,-481.26,0.00022191,2]
[363109632,1748583052514,-432.82,0.00022191,2]
[363109633,1748583052523,-847.77,0.00022191,2]
[363109634,1748583052533,-420.0,0.00022191,2]
[363109635,1748583052543,-684.17,0.00022191,2]
[363109636,1748583052552,-456.65,0.00022191,2]
[363109637,1748583052561,-420.0,0.00022191,2]
[363109638,1748583052570,-420.0,0.00022191,2]
[363109639,1748583052578,-360.12333822,0.00022191,2]
[363109640,1748583052586,-420.0,0.00022191,2]
[363109641,1748583052595,-420.0,0.00022191,2]
[363109642,1748583052603,-250.0,0.00022191,2]
[363109643,1748583052613,-420.0,0.00022191,2]
[363109644,1748583052623,-420.0,0.00022191,2]
[363109645,1748583052633,-420.0,0.00022191,2]
[363109646,1748583052643,-420.0,0.00022191,2]
[363109647,1748583052652,-420.0,0.00022191,2]
[363109648,1748583052663,-500.6,0.00022191,2]
[363109649,1748583052674,-300.0,0.00022191,2]
[363109650,1748583052683,-420.0,0.00022191,2]
[363109651,1748583052694,-420.0,0.00022191,2]
[363109652,1748583052703,-420.0,0.00022191,2]
[363109653,1748583052713,-579.5,0.00022191,2]
[363109654,1748583052722,-420.0,0.00022191,2]
[363109655,1748583052732,-420.0,0.00022191,2]
[363109656,1748583052743,-151.0,0.00022191,7]
[363109657,1748583052752,-420.0,0.00022191,2]
[363109658,1748583052763,-420.0,0.00022191,2]
[363109659,1748583052774,-420.0,0.00022191,2]
[363109660,1748583052785,-420.0,0.00022191,2]
[363109661,1748583052796,-446.25,0.00022191,2]
[363109662,1748583052806,-420.0,0.00022191,2]
[363109663,1748583052816,-420.0,0.00022191,2]
[363109664,1748583052827,-420.0,0.00022191,2]
[363109665,1748583052836,-420.0,0.00022191,2]
[363109666,1748583052846,-420.0,0.00022191,2]
[363109667,1748583052857,-420.0,0.00022191,2]
[363109668,1748583052866,-420.0,0.00022191,2]
[363109669,1748583052876,-478.33,0.00022191,2]
[363109670,1748583052888,-420.0,0.00022191,2]
[363109671,1748583052898,-420.0,0.00022191,2]
[363109672,1748583052908,-476.66,0.00022191,2]
[363109673,1748583052918,-151.0,0.00022191,7]
[363109674,1748583052927,-591.65,0.00022191,2]
[363109675,1748583052937,-420.0,0.00022191,2]
[363109676,1748583052948,-420.0,0.00022191,2]
[363109677,1748583052958,-420.0,0.00022191,2]
[363109678,1748583053039,-420.0,0.00022191,2]
[363109679,1748583053050,-453.07,0.00022191,2]
[363109680,1748583053060,-420.0,0.00022191,2]
[363109681,1748583053070,-457.12,0.00022191,2]
[363109682,1748583053079,-420.0,0.00022191,2]
[363109683,1748583053089,-420.0,0.00022191,2]
[363109684,1748583053099,-420.0,0.00022191,2]
[363109685,1748583053108,-151.0,0.00022191,7]
[363109686,1748583053118,-420.0,0.00022191,2]
[363109687,1748583053127,-420.0,0.00022191,2]
[363109688,1748583053139,-420.0,0.00022191,2]
[363109689,1748583053148,-420.0,0.00022191,2]
[363109690,1748583053158,-420.0,0.00022191,2]
[363109691,1748583053167,-420.0,0.00022191,2]
[363109692,1748583053177,-420.0,0.00022191,2]
[363109693,1748583053187,-703.15,0.00022191,2]
[363109694,1748583053196,-420.0,0.00022191,2]
[363109695,1748583053205,-420.0,0.00022191,2]
[363109696,1748583053214,-1156.08,0.00022191,2]
[363109697,1748583053224,-420.0,0.00022191,2]
[363109698,1748583053233,-281.55283619,0.00022191,2]
[363109699,1748583053243,-571.01,0.00022191,2]
[363109700,1748583053252,-420.0,0.00022191,2]
[363109701,1748583053262,-420.0,0.00022191,2]
[363109702,1748583053271,-420.0,0.00022191,2]
[363109703,1748583053280,-420.0,0.00022191,2]
[363109704,1748583053289,-420.0,0.00022191,2]
[363109705,1748583053299,-420.0,0.00022191,2]
[363109706,1748583053309,-420.0,0.00022191,2]
[363109707,1748583053318,-420.0,0.00022191,2]
[363109708,1748583053328,-420.0,0.00022191,2]
[363109709,1748583053337,-1777.61,0.00022191,2]
[363109710,1748583053347,-1318.96,0.00022191,2]
[363109711,1748583053356,-420.0,0.00022191,2]
[363109712,1748583053365,-420.0,0.00022191,2]
[363109713,1748583053377,-420.0,0.00022191,2]
[363109714,1748583053388,-420.0,0.00022191,2]
[363109715,1748583053398,-805.25,0.00022191,2]
[363109716,1748583053411,-420.0,0.00022191,2]
[363109717,1748583053420,-420.0,0.00022191,2]
[363109718,1748583053430,-504.71627788,0.00022191,2]
[363109719,1748583053439,-635.8,0.00022191,2]
[363109720,1748583053448,-420.0,0.00022191,2]
[363109721,1748583053457,-1247.2,0.00022191,2]
[363109722,1748583053467,-508.31,0.00022191,2]
[363109723,1748583053476,-420.0,0.00022191,2]
[363109724,1748583053486,-532.69,0.00022191,2]
[363109725,1748583053495,-155.29258395,0.00022191,2]
[363109726,1748583053504,-425.97557529,0.00022191,2]